lending/lending_fUSD_20251114
["ID","MTS","AMOUNT","RATE_DAILY","PERIOD"]
[393960818,1763132024388,-10000.01,0.00015677,2]
[393960819,1763132024596,-2188.35480826,0.00015677,2]
[393960820,1763132027061,-278.57,0.00016003,2]
[393960821,1763132029832,-74.73813673,0.00016003,2]
[393960822,1763132029860,-463.86651927,0.00016003,2]
[393960823,1763132032887,-36.13348073,0.00016003,2]
[393960824,1763132032914,-148.18918283,0.00016003,2]
[393960825,1763132063463,-313.46361941,0.00015904,2]
[393960826,1763132068275,-320.85638059,0.00015904,2]
[393960827,1763132082402,-98.87799843,0.00015904,2]
[393960828,1763132082602,6664.6508425,0.00015841,2]
[393960829,1763132088570,419.56429201,0.00015903,2]
[393960830,1763132094388,419.564292,0.00015904,2]
[393960831,1763132100360,419.564292,0.00015904,2]
[393960832,1763132119479,287.24453312,0.00015904,2]
[393960833,1763132130258,1591.66575151,0.00015904,2]
[393960834,1763132130285,10000.01,0.00015904,2]
[393960835,1763132130907,-287.0233663,0.00015904,2]
[393960836,1763132134566,-288.08448633,0.00015904,2]
[393960837,1763132136210,-723.46316496,0.00015904,2]
[393960838,1763132136577,-167.39776405,0.00016002,2]
[393960839,1763132142787,-211.91551367,0.00016002,2]
[393960840,1763132144816,-120.68672228,0.00016002,2]
[393960841,1763132144850,-333.18760613,0.00016002,2]
[393960842,1763132151772,-192.47764047,0.00016002,2]
[393960843,1763132159878,-445.85760189,0.00015904,2]
[393960844,1763132163304,-279.19354798,0.00015904,2]
[393960845,1763132167855,-257.68869896,0.00015904,2]
[393960846,1763132169671,-207.4135978,0.00015904,2]
[393960847,1763132175032,-284.18130677,0.00015904,2]
[393960848,1763132177197,-234.94227212,0.00015904,2]
[393960849,1763132185153,-158.64013925,0.00015904,2]
[393960850,1763132188725,1000.0,0.000155,2]
[393960851,1763132190617,-179.25242389,0.00015904,2]
[393960852,1763132195275,-195.0,0.00015904,2]
[393960853,1763132197062,1000.0,0.00015,2]
[393960854,1763132201301,-160.54,0.00015904,2]
[393960855,1763132206780,-156.315875,0.00015904,2]
[393960856,1763132209648,-191.17812775,0.00015904,2]
[393960857,1763132215975,-197.78678916,0.00015904,2]
[393960858,1763132218984,-300.0,0.00015904,2]
[393960859,1763132221108,-354.0085948,0.00015904,2]
[393960860,1763132222936,-248.06514993,0.00015904,2]
[393960861,1763132233016,-160.9951893,0.00015904,2]
[393960862,1763132239063,-151.0,0.00015904,2]
[393960863,1763132240769,-168.41110189,0.00015904,2]
[393960864,1763132248987,-377.65895858,0.00015902,2]
[393960865,1763132254312,-122.34104142,0.00015902,2]
[393960866,1763132254335,-33.22375103,0.00015904,2]
[393960867,1763132256231,-211.1456766,0.00015904,2]
[393960868,1763132262476,-207.21520516,0.00015904,2]
[393960869,1763132265252,-399.30186852,0.00015904,2]
[393960870,1763132270459,-463.79321548,0.00015904,2]
[393960871,1763132270484,-389.54479811,0.00015904,2]
[393960872,1763132270512,-257.67780044,0.00016002,2]
[393960873,1763132273116,-42.32219956,0.00016002,2]
[393960874,1763132273140,-273.10874267,0.00016002,2]
[393960875,1763132278120,-26.89125733,0.00016002,2]
[393960876,1763132278144,-207.10423402,0.00016002,2]
[393960877,1763132278166,-207.10423402,0.00016002,2]
[393960878,1763132278189,-58.90027463,0.00016002,2]
[393960879,1763132281057,-155.56479245,0.00016002,2]
[393960880,1763132286252,-272.90389243,0.00015904,2]
[393960881,1763132288790,-314.32707208,0.00015904,2]
[393960882,1763132289043,-22.53493292,0.00016002,2]
[393960883,1763132289069,-163.83877742,0.00016003,2]
[393960884,1763132294550,-168.86324805,0.00016003,2]
[393960885,1763132297001,-451.47332162,0.00016003,2]
[393960886,1763132303716,-181.18203032,0.00016003,2]
[393960887,1763132311926,-195.23,0.00016003,2]
[393960888,1763132319191,-39.41262259,0.00016003,2]
[393960889,1763132319221,-172.58686168,0.00016003,2]
[393960890,1763132319249,-51.81848541,0.00016003,2]
[393960891,1763132321266,-218.29261088,0.00016003,2]
[393960892,1763132321366,-6.78068607,0.00016003,2]
[393960893,1763132321398,-151.0,0.00016003,2]
[393960894,1763132321430,-250.0,0.00016003,2]
[393960895,1763132321466,-351.81081717,0.00016003,2]
[393960896,1763132321507,-278.55704917,0.00016003,2]
[393960897,1763132321538,-199.73695262,0.00016003,2]
[393960898,1763132321575,-376.36777228,0.00016003,2]
[393960899,1763132321605,-180.06788919,0.00016003,2]
[393960900,1763132321645,-354.0085948,0.00016003,2]
[393960901,1763132321683,-560.06033923,0.00016003,2]
[393960902,1763132321721,-168.41110189,0.00016003,2]
[393960903,1763132321760,-500.0,0.00016003,2]
[393960904,1763132321799,-315.43094223,0.00016003,2]
[393960905,1763132321831,-155.56479245,0.00016003,2]
[393960906,1763132324269,-151.0,0.00016003,2]
[393960907,1763132326312,-161.77260472,0.00016003,2]
[393960908,1763132327362,-53.98798033,0.00016003,2]
[393960909,1763132327555,-92.196162,0.00016004,2]
[393960910,1763132327939,-167.38049276,0.00016004,2]
[393960911,1763132329470,-288.6505413,0.00016004,2]
[393960912,1763132330408,-10000.01,0.00016004,2]
[393960913,1763132334741,-195.0,0.00015904,2]
[393960914,1763132336894,-217.92631296,0.00015904,2]
[393960915,1763132342227,-449.18001025,0.00015904,2]
[393960916,1763132344523,-300.0,0.00015903,2]
[393960917,1763132344546,-1.12744164,0.00015904,2]
[393960918,1763132353505,-485.20026001,0.00015904,2]
[393960919,1763132360410,-193.44787182,0.00015904,2]
[393960920,1763132363822,-216.12958544,0.00015904,2]
[393960921,1763132368096,-283.61244424,0.00015904,2]
[393960922,1763132373807,-250.0,0.00015904,2]
[393960923,1763132376441,-151.02248491,0.00015904,2]
[393960924,1763132383515,-273.80475986,0.00015884,2]
[393960925,1763132389885,-177.26703298,0.00015884,2]
[393960926,1763132392524,-297.89764123,0.00015884,2]
[393960927,1763132397678,-245.47636787,0.00015884,2]
[393960928,1763132401747,-201.18598333,0.00015884,2]
[393960929,1763132401771,-298.81401667,0.00015904,2]
[393960934,1763132463458,-177.26703298,0.00015803,2]
[393960935,1763132463493,-169.0,0.00015903,2]
[393960936,1763132463529,-1200.0,0.00015903,2]
[393960937,1763132463568,-300.0,0.00015903,2]
[393960938,1763132463605,-250.0,0.00015903,2]
[393960939,1763132463639,-195.0,0.00015904,2]
[393960940,1763132463811,-5417.47593404,0.00015904,2]
[393960941,1763132463843,-7857.07476778,0.00015904,2]
[393960942,1763132463854,-294.53948379,0.00015904,2]
[393960943,1763132463864,-1848.39574843,0.00015904,2]
[393960944,1763132466369,-651.60425157,0.00015904,2]
[393960945,1763132466400,-1108.97,0.00015994,2]
[393960946,1763132466429,-1108.97,0.00015994,2]
[393960947,1763132466457,-1108.97,0.00015994,2]
[393960948,1763132466486,-934.01149686,0.00015994,2]
[393960949,1763132466563,-174.95850314,0.00015994,2]
[393960951,1763132469388,-1108.97,0.00015994,2]
[393960952,1763132469424,-151.0,0.00015994,2]
[393960953,1763132469457,-151.0,0.00015994,2]
[393960954,1763132469490,-151.0,0.00015994,2]
[393960955,1763132469523,-151.0,0.00015994,2]
[393960956,1763132469556,-151.0,0.00015994,2]
[393960957,1763132469593,-151.0,0.00015994,2]
[393960958,1763132469624,-151.0,0.00015994,2]
[393960959,1763132469659,-151.0,0.00015994,2]
[393960960,1763132469691,-151.0,0.00015994,2]
[393960961,1763132469724,-151.0,0.00015994,2]
[393960962,1763132469757,-151.0,0.00015994,2]
[393960963,1763132469790,-151.0,0.00015994,2]
[393960964,1763132469823,-151.0,0.00015994,2]
[393960965,1763132469859,-151.0,0.00015994,2]
[393960966,1763132469892,-151.0,0.00015994,2]
[393960967,1763132469926,-151.0,0.00015994,2]
[393960968,1763132469961,-151.0,0.00015994,2]
[393960969,1763132469995,-151.0,0.00015994,2]
[393960970,1763132470029,-151.0,0.00015994,2]
[393960971,1763132470063,-151.0,0.00015994,2]
[393960972,1763132470099,-500.0,0.00016003,2]
[393960973,1763132470132,-201.62554858,0.00016003,2]
[393960974,1763132470612,-338.81890284,0.00016003,2]
[393960979,1763132496428,-164.59,0.00015684,2]
[393960980,1763132496451,-757.43735665,0.00015684,2]
[393960981,1763132503403,-290.981863,0.00015684,2]
[393960983,1763132505452,-177.44061278,0.00015684,2]
[393960984,1763132506471,-656.87416757,0.00015684,2]
[393960985,1763132506501,-1080.27782214,0.00015904,2]
[393960986,1763132506532,-2500.0,0.00015904,2]
[393960987,1763132506604,-1525.70602058,0.00016003,2]
[393960988,1763132506680,-1768.80547392,0.00016003,2]
[393960989,1763132506712,-500.0,0.00016003,2]
[393960990,1763132506743,-500.0,0.00016003,2]
[393960991,1763132506773,-245.47636787,0.00016003,2]
[393960992,1763132506805,-500.0,0.00016003,2]
[393960993,1763132506843,-500.0,0.00016003,2]
[393960994,1763132506878,-203.2630935,0.00016003,2]
[393960995,1763132506912,-205.41588403,0.00016003,2]
[393960996,1763132506944,-200.0,0.00016004,2]
[393960997,1763132507147,-754.08836136,0.00016004,2]
[393960998,1763132507166,-10000.01,0.00016004,2]
[393960999,1763132507182,-10000.01,0.00016004,2]
[393961000,1763132509144,-10000.01,0.00016004,2]
[393961001,1763132518289,-10000.01,0.00015904,2]
[393961002,1763132518430,-2565.60584482,0.00015904,2]
[393961003,1763132518457,-4868.79831036,0.00015904,2]
[393961004,1763132518569,-500.0,0.00016003,2]
[393961005,1763132518609,-9000.01,0.00016004,2]
[393961096,1763132830542,1200.0,0.000159,5]
[393961097,1763132878569,170.94729013,0.00041466,30]
[393961098,1763132962143,-181.59386596,0.00015775,2]
[393961107,1763133016250,250.0,0.000153,2]
[393961120,1763133031777,-290.66604117,0.00015775,2]
[393961121,1763133031789,-727.74009287,0.00015775,2]
[393961122,1763133031801,-300.0,0.00015775,2]
[393961123,1763133031811,-300.0,0.00015775,2]
[393961125,1763133031820,-1200.0,0.00015775,2]
[393961127,1763133031830,-5805.72,0.00015776,2]
[393961129,1763133031840,-1259.82,0.00015776,2]
[393961130,1763133031849,-615.96,0.00015776,2]
[393961131,1763133031859,-250.0,0.0001584,2]
[393961132,1763133031869,-8931.48858186,0.00015894,2]
[393961133,1763133031880,-4826.37978,0.00015894,2]
[393961134,1763133031892,-908.31160856,0.00015894,2]
[393961135,1763133031907,-1059.77703254,0.00015894,2]
[393961136,1763133031918,-535.362,0.00015894,2]
[393961137,1763133031930,-2621.33099704,0.00015894,2]
[393961138,1763133031939,-18882.65,0.00015894,2]
[393961139,1763133031949,-300.0,0.00015902,2]
[393961140,1763133031959,-500.0,0.00015903,2]
[393961141,1763133031968,-500.0,0.00015903,2]
[393961142,1763133031978,-500.0,0.00015903,2]
[393961143,1763133031987,-500.0,0.00015903,2]
[393961144,1763133031997,-500.0,0.00015903,2]
[393961145,1763133032007,-500.0,0.00015903,2]
[393961146,1763133032016,-500.0,0.00015903,2]
[393961147,1763133032026,-500.0,0.00015903,2]
[393961148,1763133032036,-500.0,0.00015903,2]
[393961149,1763133032050,-500.0,0.00015903,2]
[393961150,1763133032060,-500.0,0.00015903,2]
[393961151,1763133032072,-500.0,0.00015903,2]
[393961152,1763133032081,-500.0,0.00015903,2]
[393961153,1763133032091,-500.0,0.00015903,2]
[393961154,1763133032100,-500.0,0.00015903,2]
[393961155,1763133032110,-500.0,0.00015903,2]
[393961156,1763133032119,-500.0,0.00015903,2]
[393961157,1763133032130,-500.0,0.00015903,2]
[393961158,1763133032139,-500.0,0.00015903,2]
[393961159,1763133032149,-500.0,0.00015903,2]
[393961160,1763133032159,-500.0,0.00015903,2]
[393961161,1763133032168,-500.0,0.00015903,2]
[393961162,1763133032178,-500.0,0.00015903,2]
[393961163,1763133032187,-500.0,0.00015903,2]
[393961164,1763133032197,-500.0,0.00015903,2]
[393961165,1763133032207,-500.0,0.00015903,2]
[393961167,1763133032216,-500.0,0.00015903,2]
[393961169,1763133032230,-500.0,0.00015903,2]
[393961171,1763133032239,-500.0,0.00015903,2]
[393961173,1763133032249,-500.0,0.00015903,2]
[393961175,1763133032259,-500.0,0.00015903,2]
[393961177,1763133032269,-500.0,0.00015903,2]
[393961179,1763133032279,-500.0,0.00015903,2]
[393961180,1763133032288,-500.0,0.00015903,2]
[393961181,1763133032302,-500.0,0.00015903,2]
[393961182,1763133032311,-500.0,0.00015903,2]
[393961183,1763133032321,-574.22625241,0.00015903,2]
[393961184,1763133032331,-500.0,0.00015903,2]
[393961185,1763133032341,-500.0,0.00015903,2]
[393961186,1763133032351,-500.0,0.00015903,2]
[393961187,1763133032361,-500.0,0.00015903,2]
[393961188,1763133032375,-500.0,0.00015903,2]
[393961189,1763133032396,-500.0,0.00015903,2]
[393961190,1763133032408,-500.0,0.00015903,2]
[393961191,1763133032418,-500.0,0.00015903,2]
[393961192,1763133032429,-500.0,0.00015903,2]
[393961193,1763133032440,-500.0,0.00015903,2]
[393961194,1763133032456,-500.0,0.00015903,2]
[393961195,1763133032467,-500.0,0.00015903,2]
[393961196,1763133032478,-500.0,0.00015903,2]
[393961197,1763133032489,-500.0,0.00015903,2]
[393961198,1763133032499,-500.0,0.00015903,2]
[393961199,1763133032509,-500.0,0.00015903,2]
[393961200,1763133032518,-500.0,0.00015903,2]
[393961201,1763133032530,-500.0,0.00015903,2]
[393961202,1763133032541,-500.0,0.00015903,2]
[393961203,1763133032558,-500.0,0.00015903,2]
[393961204,1763133032567,-500.0,0.00015903,2]
[393961205,1763133032577,-500.0,0.00015903,2]
[393961206,1763133032586,-500.0,0.00015903,2]
[393961207,1763133032596,-500.0,0.00015903,2]
[393961208,1763133032607,-299.99999999,0.00015903,2]
[393961209,1763133032617,-500.0,0.00015903,2]
[393961210,1763133032626,-500.0,0.00015903,2]
[393961211,1763133032636,-500.0,0.00015903,2]
[393961212,1763133032646,-500.0,0.00015903,2]
[393961213,1763133032660,-500.0,0.00015903,2]
[393961214,1763133032669,-500.0,0.00015903,2]
[393961215,1763133032679,-265.08553542,0.00015904,2]
[393961216,1763133032689,-20372.61708739,0.00015904,2]
[393961217,1763133032699,-15700.22040078,0.00015904,2]
[393961218,1763133032710,-1000.0,0.00015904,2]
[393961219,1763133032719,-78227.73881651,0.00015904,2]
[393961220,1763133032732,-43838.95314666,0.00015904,2]
[393961225,1763133038203,-2290.94,0.00015904,2]
[393961226,1763133038215,-635642.36803683,0.00015904,2]
[393961227,1763133038225,-506.3715754,0.00015973,2]
[393961228,1763133038235,-500.0,0.00015973,2]
[393961229,1763133038246,-193.79969993,0.00015973,2]
[393961230,1763133038255,-752.75,0.00015994,3]
[393961231,1763133038265,-151.0,0.00015994,2]
[393961232,1763133038275,-151.0,0.00015994,2]
[393961233,1763133038285,-151.0,0.00015994,2]
[393961234,1763133038296,-151.0,0.00015994,2]
[393961235,1763133038306,-151.0,0.00015994,2]
[393961236,1763133038316,-151.0,0.00015994,2]
[393961237,1763133038326,-151.0,0.00015994,2]
[393961238,1763133038336,-151.0,0.00015994,2]
[393961239,1763133038346,-151.0,0.00015994,2]
[393961240,1763133038356,-151.0,0.00015994,2]
[393961241,1763133038367,-151.0,0.00015994,2]
[393961242,1763133038376,-151.0,0.00015994,2]
[393961243,1763133038386,-151.0,0.00015994,2]
[393961244,1763133038395,-151.0,0.00015994,2]
[393961245,1763133038405,-151.0,0.00015994,2]
[393961246,1763133038415,-151.0,0.00015994,2]
[393961247,1763133038425,-151.0,0.00015994,2]
[393961248,1763133038435,-151.0,0.00015994,2]
[393961249,1763133038446,-151.0,0.00015994,2]
[393961250,1763133038459,-151.0,0.00015994,2]
[393961251,1763133038469,-151.0,0.00015994,2]
[393961252,1763133038478,-151.0,0.00015994,2]
[393961254,1763133038489,-151.0,0.00015994,2]
[393961255,1763133038498,-151.0,0.00015994,2]
[393961257,1763133038509,-151.0,0.00015994,2]
[393961259,1763133038520,-151.0,0.00015994,2]
[393961261,1763133038531,-151.0,0.00015994,2]
[393961264,1763133038541,-151.0,0.00015994,2]
[393961266,1763133038551,-151.0,0.00015994,2]
[393961267,1763133038560,-151.0,0.00015994,2]
[393961270,1763133038570,-151.0,0.00015994,2]
[393961271,1763133038580,-151.0,0.00015994,2]
[393961275,1763133038590,-151.0,0.00015994,2]
[393961277,1763133038599,-151.0,0.00015994,2]
[393961278,1763133038608,-151.0,0.00015994,2]
[393961280,1763133038618,-151.0,0.00015994,2]
[393961282,1763133038627,-151.0,0.00015994,2]
[393961284,1763133038637,-151.0,0.00015994,2]
[393961286,1763133038647,-151.0,0.00015994,2]
[393961288,1763133038656,-151.0,0.00015994,2]
[393961290,1763133038666,-1249.55,0.00015995,2]
[393961292,1763133038675,-504.57237452,0.00016003,2]
[393961294,1763133038685,-506.8004892,0.00016003,2]
[393961296,1763133038695,-500.0,0.00016003,2]
[393961298,1763133038704,-500.0,0.00016003,2]
[393961300,1763133038714,-500.0,0.00016003,2]
[393961302,1763133038725,-500.0,0.00016003,2]
[393961304,1763133038734,-500.0,0.00016003,2]
[393961306,1763133038744,-500.0,0.00016003,2]
[393961308,1763133038755,-225.00939477,0.00016003,2]
[393961310,1763133038764,-500.0,0.00016003,2]
[393961312,1763133038774,-419.59630575,0.00016003,2]
[393961314,1763133038784,-2000.0,0.00016004,2]
[393961316,1763133038794,-200.0,0.00016004,2]
[393961318,1763133038805,-1000.0,0.00016004,2]
[393961319,1763133038816,-14421.2732,0.00016004,2]
[393961320,1763133038826,-9999.99,0.00016004,2]
[393961321,1763133038836,-1309.2484439,0.00016026,2]
[393961322,1763133038846,-500.0,0.00016072,2]
[393961323,1763133038857,-150.99,0.00016073,2]
[393961324,1763133038867,-17694.14,0.00016073,2]
[393961325,1763133038878,-501.68243192,0.00016073,2]
[393961326,1763133038888,-503.34067771,0.00016073,2]
[393961327,1763133038899,-500.0,0.00016073,2]
[393961328,1763133038909,-199.52397931,0.00016073,2]
[393961329,1763133038919,-501.87005511,0.00016073,2]
[393961330,1763133038929,-246.92829124,0.00016073,2]
[393961331,1763133038939,-500.0,0.00016073,2]
[393961332,1763133038948,-500.0,0.00016073,2]
[393961333,1763133038958,-200.41214143,0.00016073,2]
[393961334,1763133038968,-431.70775828,0.00016073,2]
[393961335,1763133038978,-500.0,0.00016073,2]
[393961336,1763133038988,-532.79675222,0.00016073,2]
[393961337,1763133038998,-501.05164124,0.00016073,2]
[393961338,1763133039009,-500.0,0.00016073,2]
[393961339,1763133039018,-500.0,0.00016073,2]
[393961340,1763133039028,-1223.88,0.00016126,2]
[393961341,1763133039038,-7125.02,0.00016126,2]
[393961342,1763133039049,-499.99,0.00016126,2]
[393961343,1763133039059,-265.08553534,0.00016126,2]
[393961344,1763133039069,-20372.6170873,0.00016126,2]
[393961345,1763133039079,-15700.22040075,0.00016126,2]
[393961346,1763133039089,-200.0,0.00016164,2]
[393961347,1763133039099,-9999.99,0.00016164,2]
[393961348,1763133039109,-200.0,0.00016164,2]
[393961349,1763133039119,-1439.72,0.0001619,2]
[393961350,1763133039129,-294.90796443,0.00016222,2]
[393961351,1763133039139,-1249.55,0.00016268,2]
[393961352,1763133039149,-200.0,0.00016326,2]
[393961353,1763133039159,-265.08553534,0.00016348,2]
[393961354,1763133039169,-20372.6170873,0.00016348,2]
[393961355,1763133039178,-15700.22040075,0.00016348,2]
[393961356,1763133039188,-408.90616254,0.000164,2]
[393961357,1763133039198,-522.2985645,0.00016428,2]
[393961358,1763133039208,-522.29856451,0.00016428,2]
[393961359,1763133039218,-500.0,0.00016438,2]
[393961360,1763133039227,-500.0,0.00016438,2]
[393961361,1763133039237,-194.5394073,0.00016438,2]
[393961362,1763133039247,-500.0,0.00016438,2]
[393961363,1763133039257,-500.0,0.00016438,2]
[393961364,1763133039266,-596.50450917,0.00016438,2]
[393961365,1763133039275,-500.0,0.00016438,2]
[393961366,1763133039286,-500.0,0.00016438,2]
[393961367,1763133039298,-2724.39,0.00016438,2]
[393961368,1763133039310,-151.0,0.00016462,2]
[393961369,1763133039320,-151.0,0.00016471,2]
[393961370,1763133039330,-541.22066166,0.00016474,2]
[393961371,1763133039340,-151.0,0.00016475,2]
[393961372,1763133039350,-151.0,0.00016483,2]
[393961373,1763133039359,-200.0,0.00016489,2]
[393961374,1763133039370,-289.74534705,0.00016521,2]
[393961375,1763133039379,-230.00740437,0.00016533,2]
[393961376,1763133039389,-1249.55,0.00016542,2]
[393961377,1763133039399,-265.08553534,0.00016569,2]
[393961378,1763133039409,-20372.6170873,0.00016569,2]
[393961379,1763133039418,-15700.22040075,0.00016569,2]
[393961380,1763133039428,-500.0,0.00016621,2]
[393961381,1763133039438,-546.48826961,0.00016621,2]
[393961382,1763133039450,-500.0,0.00016621,2]
[393961383,1763133039460,-511.00806472,0.00016621,2]
[393961384,1763133039469,-501.87365056,0.00016621,2]
[393961385,1763133039479,-500.0,0.00016621,2]
[393961386,1763133039490,-200.0,0.00016654,2]
[393961387,1763133039500,-500.0,0.00016701,2]
[393961388,1763133039510,-500.0,0.00016701,2]
[393961389,1763133039520,-541.22066166,0.00016759,2]
[393961390,1763133039532,-151.52,0.00016775,2]
[393961391,1763133039542,-265.08553534,0.00016791,2]
[393961392,1763133039553,-20372.6170873,0.00016791,2]
[393961393,1763133039563,-15700.22040075,0.00016791,2]
[393961394,1763133039572,-1249.55,0.00016816,2]
[393961395,1763133039582,-1344.41843685,0.00016846,2]
[393961396,1763133039592,-999.0,0.00016856,3]
[393961398,1763133039602,-159.32,0.00016856,2]
[393961399,1763133039612,-200.0,0.00016856,2]
[393961400,1763133039621,-86354.26,0.00016856,2]
[393961401,1763133039631,-150.0,0.00016856,2]
[393961402,1763133039642,-501.78005866,0.00016873,2]
[393961403,1763133039652,-502.72635091,0.00016873,2]
[393961404,1763133039662,-501.77594875,0.00016873,2]
[393961405,1763133039672,-500.0,0.00016873,2]
[393961407,1763133039682,-500.0,0.00016873,2]
[393961408,1763133039692,-500.0,0.00016873,2]
[393961409,1763133039704,-502.30073281,0.00016873,2]
[393961410,1763133039713,-500.0,0.00016873,2]
[393961411,1763133039723,-502.59344197,0.00016873,2]
[393961412,1763133039732,-165.98689145,0.00016873,2]
[393961413,1763133039742,-503.31304757,0.00016873,2]
[393961414,1763133039752,-501.25798024,0.00016873,2]
[393961416,1763133039761,-500.0,0.00016873,2]
[393961418,1763133039771,-502.99102467,0.00016873,2]
[393961419,1763133039781,-486.89386542,0.00016873,2]
[393961420,1763133039790,-500.0,0.00016873,2]
[393961421,1763133039802,-501.70960681,0.00016873,2]
[393961422,1763133039811,-502.52932998,0.00016873,2]
[393961423,1763133039820,-501.91631598,0.00016873,2]
[393961424,1763133039830,-500.0,0.00016873,2]
[393961425,1763133039839,-500.0,0.00016873,2]
[393961426,1763133039848,-504.30256629,0.00016873,2]
[393961427,1763133039858,-155.73,0.00016887,2]
[393961428,1763133039868,-1309.2484439,0.00016913,2]
[393961429,1763133039877,-2000.0,0.00017,2]
[393961430,1763133039887,-250.0,0.00017,2]
[393961431,1763133039896,-265.08553534,0.00017013,2]
[393961432,1763133039906,-20372.6170873,0.00017013,2]
[393961433,1763133039916,-15700.22040075,0.00017013,2]
[393961434,1763133039925,-510.0,0.00017015,2]
[393961435,1763133039934,-500.0,0.00017041,2]
[393961436,1763133039944,-541.22066166,0.00017045,2]
[393961437,1763133039954,-1249.55,0.0001709,2]
[393961438,1763133039963,-177.08959259,0.00017173,2]
[393961439,1763133039973,-2500.0,0.000172,6]
[393961440,1763133039983,-4764.0,0.00017235,2]
[393961441,1763133039992,-265.08553534,0.00017235,2]
[393961442,1763133040002,-20372.6170873,0.00017235,2]
[393961443,1763133040011,-15700.22040075,0.00017235,2]
[393961444,1763133040021,-300.0,0.00017251,2]
[393961445,1763133040031,-420.0,0.00017251,2]
[393961446,1763133040041,-500.0,0.00017273,2]
[393961447,1763133040052,-3700.0,0.000173,6]
[393961448,1763133040062,-541.22066166,0.0001733,2]
[393961449,1763133040071,-1680.0,0.00017338,2]
[393961450,1763133040081,-195.0,0.00017353,2]
[393961451,1763133040091,-2612.83081136,0.00017353,4]
[393961452,1763133040100,-195.0,0.00017353,2]
[393961453,1763133040110,-250.0,0.00017353,2]
[393961454,1763133040120,-1071.42770396,0.00017353,2]
[393961455,1763133040130,-250.0,0.00017353,2]
[393961456,1763133040140,-195.0,0.00017353,2]
[393961457,1763133040150,-300.0,0.00017353,2]
[393961458,1763133040161,-300.0,0.00017353,2]
[393961459,1763133040172,-300.0,0.00017353,2]
[393961465,1763133040355,-300.0,0.00017353,2]
[393961467,1763133040364,-300.0,0.00017353,2]
[393961469,1763133040373,-300.0,0.00017353,2]
[393961470,1763133040383,-1249.55,0.00017364,2]
[393961472,1763133040392,-5000.0,0.000174,6]
[393961474,1763133040402,-1000.0,0.00017421,2]
[393961475,1763133040411,-503.95087049,0.00017421,2]
[393961477,1763133040422,-1000.0,0.00017421,2]
[393961478,1763133040431,-421.65078298,0.00017421,2]
[393961479,1763133040442,-1007.35215081,0.00017421,2]
[393961480,1763133040455,-358.35946228,0.00017421,2]
[393961481,1763133040464,-627.33981294,0.00017421,2]
[393961482,1763133040474,-513.94627713,0.00017421,2]
[393961483,1763133040483,-169.81,0.00017423,2]
[393961484,1763133040494,-369.85,0.00017423,2]
[393961486,1763133040504,-371.1,0.00017423,2]
[393961488,1763133040514,-265.08553534,0.00017456,2]
[393961489,1763133040525,-20372.6170873,0.00017456,2]
[393961491,1763133040534,-15700.22040075,0.00017456,2]
[393961493,1763133040547,-6200.0,0.000175,6]
[393961494,1763133040556,-177.08959259,0.00017537,2]
[393961495,1763133040565,-1200.0,0.000176,6]
[393961496,1763133040575,-1483.0,0.00017613,2]
[393961497,1763133040586,-541.22066166,0.00017615,2]
[393961498,1763133040595,-1705.70922546,0.00017617,2]
[393961499,1763133040605,-1249.55,0.00017638,2]
[393961500,1763133040615,-699.91,0.00017638,2]
[393961501,1763133040626,-699.91,0.00017638,2]
[393961502,1763133040635,-699.91,0.00017638,2]